bitfinex/quotes_BTCUSD_20251104
["timestamp","ask_amount","ask_price","bid_price","bid_amount"]
[1762264243601,0.20534468,103980.0,103970.0,0.31151388]
[1762264243807,0.036,103980.0,103970.0,0.31251388]
[1762264244003,0.22834468,103980.0,103970.0,0.31251388]
[1762264244203,0.20534468,103980.0,103970.0,0.31151388]
[1762264244591,0.20534468,103980.0,103970.0,0.31651388]
[1762264244799,0.00064493,103990.0,103980.0,0.24213445]
[1762264244950,0.00064493,103990.0,103980.0,0.26845445]
[1762264245194,0.19297111,103990.0,103980.0,0.07610977]
[1762264245379,0.19297111,103990.0,103980.0,0.09534423]
[1762264245571,0.19297111,103990.0,103980.0,0.06294977]
[1762264245778,0.19297111,103990.0,103980.0,0.01316]
[1762264246221,0.19234468,103980.0,103970.0,0.0681907]
[1762264246525,0.19234468,103980.0,103970.0,0.0500307]
[1762264246724,0.89073624,103980.0,103970.0,0.0631907]
[1762264246942,0.89073624,103980.0,103970.0,0.01340093]
[1762264247156,0.90689624,103980.0,103970.0,0.00024093]
[1762264247362,0.92977624,103980.0,103970.0,0.00024093]
[1762264247992,0.92977624,103980.0,103970.0,0.00324093]
[1762264248357,0.90789624,103980.0,103970.0,0.00524093]
[1762264248560,0.20850468,103980.0,103970.0,0.00324093]
[1762264248933,0.20850468,103980.0,103970.0,0.00424093]
[1762264251249,0.23138468,103980.0,103970.0,0.00424093]
[1762264251394,0.92977624,103980.0,103970.0,0.00424093]
[1762264251624,0.89073624,103980.0,103970.0,0.01740093]
[1762264251822,0.90689624,103980.0,103970.0,0.01740093]
[1762264252030,0.89073624,103980.0,103970.0,0.01740093]
[1762264252543,0.90689624,103980.0,103970.0,0.01740093]
[1762264252734,0.90689624,103980.0,103970.0,0.00424093]
[1762264252949,0.20850468,103980.0,103970.0,0.00424093]
[1762264253750,0.23138468,103980.0,103970.0,0.00424093]
[1762264253949,0.20850468,103980.0,103970.0,0.00424093]
[1762264254561,0.90689624,103980.0,103970.0,0.01740093]
[1762264254765,0.89073624,103980.0,103970.0,0.01740093]
[1762264255407,0.19234468,103980.0,103970.0,0.01740093]
[1762264255956,0.19234468,103980.0,103970.0,0.01677393]
[1762264256157,0.19234468,103980.0,103970.0,0.02993393]
[1762264256517,0.19234468,103980.0,103970.0,0.09896001]
[1762264257869,0.19297115,103990.0,103970.0,0.22229711]
[1762264258083,0.00064493,103990.0,103980.0,0.26845445]
[1762264259149,0.00064493,103990.0,103980.0,0.33814375]
[1762264259692,0.00064493,103990.0,103980.0,0.33914375]
[1762264260229,0.00064493,103990.0,103980.0,0.34114375]
[1762264262223,0.00064493,103990.0,103980.0,0.36693352]
[1762264267530,0.00064493,103990.0,103980.0,0.56693352]
[1762264267727,0.76976996,104020.0,104010.0,0.1922892]
[1762264267928,0.7699155,104020.0,104010.0,0.26350897]
[1762264268180,0.7699155,104020.0,104010.0,0.27666897]
[1762264268301,0.7699155,104020.0,104010.0,0.07121977]
[1762264268506,0.7699155,104020.0,104010.0,0.29589789]
[1762264268842,0.7699155,104020.0,104010.0,0.08437977]
[1762264269038,0.20202978,104020.0,104010.0,0.10360869]
[1762264269223,0.7699155,104020.0,104010.0,0.10360869]
[1762264269434,0.19241625,104020.0,104010.0,0.29589789]
[1762264269745,0.00014554,104020.0,104010.0,0.27666897]
[1762264269944,0.19541625,104020.0,104010.0,0.27666897]
[1762264270127,0.19541625,104020.0,104010.0,0.2268792]
[1762264270328,0.19541625,104020.0,104010.0,0.27666897]
[1762264270802,0.19841625,104020.0,104010.0,0.27766897]
[1762264270983,0.19541625,104020.0,104010.0,0.27666897]
[1762264271548,0.19241625,104020.0,104010.0,0.27666897]
[1762264272124,0.19241625,104020.0,104010.0,0.27766897]
[1762264272335,0.00014554,104020.0,104010.0,0.27766897]
[1762264272559,0.19241625,104020.0,104010.0,0.27766897]
[1762264273829,0.00014554,104020.0,104010.0,0.27766897]
[1762264276104,0.19241625,104020.0,104010.0,0.08537977]
[1762264276309,0.76030197,104020.0,104010.0,0.07221977]
[1762264276511,0.76030197,104020.0,104010.0,0.02243]
[1762264276697,0.77688197,104020.0,104010.0,0.00927]
[1762264276908,0.80178197,104020.0,104010.0,0.00927]
[1762264277114,0.80178197,104020.0,104010.0,0.001]
[1762264277428,0.77688197,104020.0,104010.0,0.001]
[1762264277628,0.1922892,104010.0,104000.0,0.04978977]
[1762264277834,0.76017492,104010.0,104000.0,0.06294977]
[1762264278038,0.76017492,104010.0,104000.0,0.07610977]
[1762264278246,0.76017492,104010.0,104000.0,0.26841746]
[1762264278831,0.001,104010.0,104000.0,0.21862769]
[1762264279032,0.1932892,104010.0,104000.0,0.26841746]
[1762264279843,0.001,104010.0,104000.0,0.26841746]
[1762264280247,0.003,104010.0,104000.0,0.26841746]
[1762264280487,0.1952892,104010.0,104000.0,0.26841746]
[1762264280877,0.1932892,104010.0,104000.0,0.26841746]
[1762264281095,0.76030197,104020.0,104010.0,0.04978977]
[1762264281266,0.76030197,104020.0,104010.0,0.06294977]
[1762264281476,0.76030197,104020.0,104010.0,0.26839897]
[1762264281676,0.76030197,104020.0,104010.0,0.07610977]
[1762264281900,0.76030197,104020.0,104010.0,0.06294977]
[1762264282103,0.76130197,104020.0,104010.0,0.06294977]
[1762264282311,0.76330197,104020.0,104010.0,0.06294977]
[1762264282700,0.76330197,104020.0,104010.0,0.25523897]
[1762264282904,0.76330197,104020.0,104010.0,0.26839897]
[1762264283115,0.76330197,104020.0,104010.0,0.07610977]
[1762264283605,0.76330197,104020.0,104010.0,0.26839897]
[1762264284127,0.00314554,104020.0,104010.0,0.2186092]
[1762264284401,0.00314554,104020.0,104010.0,0.2614092]
[1762264284631,0.00314554,104020.0,104010.0,0.31119897]
[1762264285036,0.00214554,104020.0,104010.0,0.31119897]
[1762264285243,0.00014554,104020.0,104010.0,0.31219897]
[1762264285662,0.19112702,104040.0,104030.0,0.19225223]
[1762264285864,0.19161295,104040.0,104030.0,0.11063977]
[1762264286079,0.19161295,104040.0,104030.0,0.316052]
[1762264287190,0.00048593,104040.0,104030.0,0.316052]
[1762264287393,0.19471968,104040.0,104030.0,0.316052]
[1762264287609,0.00248593,104040.0,104030.0,0.316052]
[1762264288041,0.00348593,104040.0,104030.0,0.316052]
[1762264289349,0.19571968,104040.0,104030.0,0.316052]
[1762264290206,0.00348593,104040.0,104030.0,0.316052]
[1762264290631,0.19571968,104040.0,104030.0,0.12379977]
[1762264291076,0.19571968,104040.0,104030.0,0.316052]
[1762264291902,0.00348593,104040.0,104030.0,0.316052]
[1762264292799,0.19571968,104040.0,104030.0,0.316052]
[1762264293985,0.00348593,104040.0,104030.0,0.316052]
[1762264295360,0.19571968,104040.0,104030.0,0.316052]
[1762264296709,0.00348593,104040.0,104030.0,0.316052]
[1762264298390,0.59520496,104040.0,104030.0,0.316052]
[1762264298810,0.59520496,104040.0,104030.0,0.12379977]
[1762264299903,1.43454552,104040.0,104030.0,0.00489]
[1762264300109,0.19227071,104020.0,104010.0,0.06294977]
[1762264300326,0.1922892,104010.0,104000.0,0.30094426]
[1762264300534,0.59177448,104010.0,104000.0,0.39349403]
[1762264300751,0.39948528,104010.0,104000.0,0.40665403]
[1762264300978,0.39948528,104010.0,104000.0,0.35686426]
[1762264301197,0.39948528,104010.0,104000.0,0.40665403]
[1762264301408,0.39948528,104020.0,104010.0,0.1922892]
[1762264301621,0.39948528,104020.0,104010.0,0.26839897]
[1762264302547,0.75995503,104030.0,104020.0,0.24206048]
[1762264302760,0.75995503,104030.0,104020.0,0.26838048]
[1762264303381,0.75995448,104030.0,104020.0,0.26838048]
[1762264303612,0.75995448,104030.0,104020.0,0.07610977]
[1762264303819,0.75995448,104030.0,104020.0,0.06294977]
[1762264303991,0.75995448,104030.0,104020.0,0.25522048]
[1762264304197,0.76095448,104030.0,104020.0,0.25622048]
[1762264304373,0.76095448,104030.0,104020.0,0.07710977]
[1762264304582,0.76095448,104030.0,104020.0,0.26938048]
[1762264305003,0.56870225,104030.0,104020.0,0.26938048]
[1762264305202,0.76095448,104030.0,104020.0,0.26938048]
[1762264305400,0.76095448,104030.0,104020.0,0.25622048]
[1762264305602,0.001,104030.0,104020.0,0.26938048]
[1762264306193,0.88478355,104030.0,104020.0,0.001]
[1762264306384,0.90757355,104030.0,104020.0,0.001]
[1762264306597,0.92830696,104030.0,104020.0,0.001]
[1762264306962,0.95530504,104030.0,104020.0,0.001]
[1762264307396,0.19230769,104000.0,103990.0,0.05805977]
[1762264307596,0.19230769,104000.0,103990.0,0.25038595]
[1762264307597,0.76000994,104000.0,103990.0,0.25038595]
[1762264307762,0.76000994,104000.0,103990.0,0.02143]
[1762264307970,0.76000994,104000.0,103990.0,0.26354595]
[1762264308604,0.76000994,104000.0,103990.0,0.26369149]
[1762264308995,0.76000994,104000.0,103990.0,0.07136531]
[1762264309178,0.56770225,104000.0,103990.0,0.27685149]
[1762264309378,0.56770225,104010.0,104000.0,0.24209746]
[1762264309584,0.1922892,104010.0,104000.0,0.26841746]
[1762264309788,0.76961903,104020.0,104000.0,0.26841746]
[1762264310026,0.82372993,104030.0,104010.0,0.2054492]
[1762264310229,0.75995448,104030.0,104020.0,0.08217684]
[1762264310431,0.78165768,104040.0,104020.0,0.26838048]
[1762264310687,0.81137581,104040.0,104030.0,0.01805]
[1762264310889,0.80238163,104040.0,104030.0,0.01805]
[1762264311239,0.8113759,104040.0,104030.0,0.01805]
[1762264311675,0.7992659,104040.0,104030.0,0.01805]
[1762264311880,0.22305531,104040.0,104030.0,0.05043522]
[1762264312052,0.20233136,104040.0,104030.0,0.10022499]
[1762264312431,0.80699792,104040.0,104030.0,0.05467977]
[1762264312642,0.82978792,104040.0,104030.0,0.00489]
[1762264312847,0.83878245,104040.0,104030.0,0.00489]
[1762264313225,0.84178245,104040.0,104030.0,0.00489]
[1762264314158,0.81899245,104040.0,104030.0,0.00489]
[1762264314397,0.80275245,104040.0,104030.0,0.21030223]
[1762264314605,0.79375792,104040.0,104030.0,0.273252]
[1762264314812,0.78414624,104040.0,104030.0,0.273252]
[1762264315653,0.00348593,104040.0,104030.0,0.273252]
[1762264316271,0.19571968,104040.0,104030.0,0.316012]
[1762264316683,0.00348593,104040.0,104030.0,0.316012]
[1762264318435,0.00248593,104040.0,104030.0,0.316012]
[1762264318681,0.00048593,104040.0,104030.0,0.319012]
[1762264319230,0.00048593,104040.0,104030.0,0.26922223]
[1762264319433,0.00048593,104040.0,104030.0,0.319012]
[1762264320174,0.00048593,104040.0,104030.0,0.320012]
[1762264321380,0.00048593,104040.0,104030.0,0.520012]
[1762264321578,0.00048593,104040.0,104030.0,0.53001199]
[1762264322119,0.00048593,104040.0,104030.0,0.520012]
[1762264322320,0.00048593,104040.0,104030.0,0.53001199]
[1762264323329,0.00048593,104040.0,104030.0,0.33001199]
[1762264324852,0.00048593,104040.0,104030.0,0.49022221]
[1762264325079,0.00256995,104070.0,104060.0,0.24198657]
[1762264325299,0.00271567,104070.0,104060.0,0.39338564]
[1762264325513,0.00271567,104070.0,104060.0,0.40654564]
[1762264326783,0.00371567,104070.0,104060.0,0.40654564]
[1762264329036,1.03800204,104100.0,104090.0,0.19214141]
[1762264329249,0.13708997,104100.0,104090.0,0.26336118]
[1762264329451,0.13708997,104100.0,104090.0,0.27652118]
[1762264329657,0.32921292,104100.0,104090.0,0.27652118]
[1762264329787,0.13708997,104100.0,104090.0,0.27652118]
[1762264329988,0.32921292,104100.0,104090.0,0.27652118]
[1762264330190,0.13908997,104100.0,104090.0,0.27652118]
[1762264330400,0.33121292,104100.0,104090.0,0.08437977]
[1762264330609,0.33121292,104100.0,104090.0,0.27652118]
[1762264332104,0.13908997,104100.0,104090.0,0.27652118]
[1762264332327,0.33121292,104100.0,104090.0,0.08437977]
[1762264332536,0.33121292,104100.0,104090.0,0.05805977]
[1762264332537,1.04663516,104100.0,104090.0,0.05805977]
[1762264332766,1.03039516,104100.0,104090.0,0.07121977]
[1762264333174,1.03039516,104100.0,104090.0,0.08437977]
[1762264333378,0.14108997,104100.0,104090.0,0.27652118]
[1762264333583,0.33321292,104100.0,104090.0,0.27652118]
[1762264333782,0.14108997,104100.0,104090.0,0.27652118]
[1762264334281,0.33121292,104100.0,104090.0,0.27652118]
[1762264334488,0.33121292,104100.0,104090.0,0.08437977]
[1762264334694,0.33121292,104100.0,104090.0,0.07121977]
[1762264335129,0.32921292,104100.0,104090.0,0.07121977]
[1762264335344,0.32921292,104100.0,104090.0,0.08437977]
[1762264335566,0.33021292,104100.0,104090.0,0.07121977]
[1762264335775,0.33019918,104100.0,104090.0,0.07121977]
[1762264336013,0.33019918,104100.0,104090.0,0.26336118]
[1762264336255,0.33019918,104100.0,104090.0,0.08437977]
[1762264336903,1.02738142,104100.0,104090.0,0.27652118]
[1762264337110,0.33019918,104100.0,104090.0,0.08437977]
[1762264337319,1.02738142,104100.0,104090.0,0.27652118]
[1762264337521,0.33019918,104100.0,104090.0,0.27652118]
[1762264337776,0.32123679,104100.0,104090.0,0.27652118]
[1762264337986,0.30328453,104100.0,104090.0,0.08437977]
[1762264338185,1.00046677,104100.0,104090.0,0.27652118]
[1762264338328,0.11116158,104100.0,104090.0,0.27652118]
[1762264338539,0.30328453,104100.0,104090.0,0.27652118]
[1762264339181,0.31225158,104100.0,104090.0,0.27652118]
[1762264339397,0.12012863,104100.0,104090.0,0.27652118]
[1762264340249,0.13806726,104100.0,104090.0,0.27652118]
[1762264340392,0.33019021,104100.0,104090.0,0.27652118]
[1762264340605,0.80834382,104100.0,104090.0,0.21357141]
[1762264340802,0.80834382,104100.0,104090.0,0.31924118]
[1762264341174,1.00046677,104100.0,104090.0,0.31924118]
[1762264341385,0.80834382,104100.0,104090.0,0.31924118]
[1762264341822,0.11116158,104100.0,104090.0,0.31924118]
[1762264342034,0.80834382,104100.0,104090.0,0.31924118]
[1762264342259,1.00943856,104100.0,104090.0,0.31924118]
[1762264342739,0.31225632,104100.0,104090.0,0.31924118]
[1762264343145,0.33020445,104100.0,104090.0,0.31924118]
[1762264343367,1.02738669,104100.0,104090.0,0.31924118]
[1762264343981,0.83526374,104100.0,104090.0,0.31924118]
[1762264344214,0.1380815,104100.0,104090.0,0.31924118]
[1762264344418,0.72929725,104100.0,104090.0,0.26945141]
[1762264344621,0.72929725,104100.0,104090.0,0.31924118]
[1762264346088,0.72929725,104100.0,104090.0,0.11393977]
[1762264346516,0.72929725,104100.0,104090.0,0.12709977]
[1762264346751,0.72929725,104100.0,104090.0,0.31924118]
[1762264346952,0.72929725,104100.0,104090.0,0.12709977]
[1762264348141,0.72929725,104100.0,104090.0,0.08437977]
[1762264348344,0.72929725,104100.0,104090.0,0.27652118]
[1762264349355,0.5371743,104100.0,104090.0,0.27652118]
[1762264349898,0.72929725,104100.0,104090.0,0.27652118]
[1762264350097,0.72929725,104100.0,104090.0,0.07121977]
[1762264350594,0.72929725,104100.0,104090.0,0.08437977]
[1762264350751,0.72032546,104100.0,104090.0,0.27652118]
[1762264353692,0.52820251,104100.0,104090.0,0.27652118]
[1762264354566,0.12910971,104100.0,104090.0,0.22673141]
[1762264354809,0.11116158,104100.0,104090.0,0.27652118]
[1762264357581,0.30328453,104100.0,104090.0,0.22673141]
[1762264357721,0.70237733,104100.0,104090.0,0.27652118]
[1762264359045,0.70237733,104100.0,104090.0,0.07121977]
[1762264359272,0.31935453,104100.0,104090.0,0.05805977]
[1762264359447,0.70237733,104100.0,104090.0,0.26336118]
[1762264359701,0.30328453,104100.0,104090.0,0.07121977]
[1762264359903,0.70237733,104100.0,104090.0,0.26336118]
[1762264360221,0.70237733,104100.0,104090.0,0.27652118]
[1762264360945,0.70237733,104100.0,104090.0,0.08437977]
[1762264361146,0.70237733,104100.0,104090.0,0.27652118]
[1762264362329,0.70237733,104100.0,104090.0,0.08437977]
[1762264362761,0.70237733,104100.0,104090.0,0.27652118]
[1762264364446,0.70237733,104100.0,104090.0,0.08437977]
[1762264364651,0.70237733,104100.0,104090.0,0.27652118]
[1762264366636,0.30328453,104100.0,104090.0,0.27652118]
[1762264366844,0.70237733,104100.0,104090.0,0.29449693]
[1762264367843,0.70237733,104100.0,104090.0,0.27652118]
[1762264368047,1.10147013,104100.0,104090.0,0.08437977]
[1762264368306,1.15356013,104100.0,104090.0,0.00827]
[1762264368717,1.15356013,104100.0,104080.0,0.05805977]
[1762264368718,0.19214141,104090.0,104080.0,0.05805977]
[1762264368926,0.66404897,104090.0,104080.0,0.07603794]
[1762264369270,0.63939897,104090.0,104080.0,0.26819781]
[1762264369504,0.61195897,104090.0,104080.0,0.28135781]
[1762264369700,0.21286617,104090.0,104080.0,0.29451781]
[1762264369829,0.61195897,104090.0,104080.0,0.27653964]
[1762264370422,0.42081756,104090.0,104080.0,0.27653964]
[1762264370624,0.61295897,104090.0,104080.0,0.27653964]
[1762264371052,0.42081756,104090.0,104080.0,0.27653964]
[1762264371256,0.61295897,104090.0,104080.0,0.27653964]
[1762264373359,0.61295897,104090.0,104080.0,0.02143]
[1762264373565,0.61295897,104090.0,104080.0,0.26337964]
[1762264374189,0.61295897,104090.0,104080.0,0.07121977]
[1762264374437,0.62525897,104090.0,104080.0,0.07121977]
[1762264374669,0.19215987,104080.0,104070.0,0.09250977]
[1762264374866,0.63941743,104080.0,104070.0,0.04978977]
[1762264375071,0.63941743,104080.0,104060.0,0.0550833]
[1762264375072,0.19217834,104070.0,104060.0,0.0550833]
[1762264375229,0.6119959,104070.0,104060.0,0.0550833]
[1762264375633,0.6271359,104070.0,104060.0,0.0550833]
[1762264375822,1.0262287,104070.0,104060.0,0.0550833]
[1762264376019,1.0262287,104070.0,104060.0,0.00529353]
[1762264376020,1.0508787,104070.0,104060.0,0.00529353]
[1762264376217,1.0508787,104070.0,104060.0,0.2472801]
[1762264376426,1.0508787,104070.0,104060.0,0.0550833]
[1762264377040,1.06067196,104070.0,104060.0,0.0550833]
[1762264377750,0.6119959,104070.0,104060.0,0.0682433]
[1762264378179,0.6119959,104070.0,104060.0,0.2604401]
[1762264378424,0.6271359,104070.0,104060.0,0.0550833]
[1762264378592,1.0508787,104070.0,104060.0,0.00040353]
[1762264378801,1.0606498,104070.0,104060.0,0.00040353]
[1762264379121,1.0895107,104070.0,104060.0,0.00040353]
[1762264379855,1.0915107,104070.0,104060.0,0.00040353]
[1762264380097,1.0925107,104070.0,104060.0,0.00040353]
[1762264380669,1.4916035,104070.0,104060.0,0.00040353]
[1762264380876,1.0925107,104070.0,104060.0,0.00040353]
[1762264381766,0.19223375,104040.0,104030.0,0.00827]
[1762264381971,0.19227071,104020.0,104010.0,0.1922892]
[1762264382218,0.19227071,104020.0,104010.0,0.00048593]
[1762264382219,0.60650351,104020.0,104010.0,0.00048593]
[1762264382434,0.77530898,104020.0,104010.0,0.00048593]
[1762264383754,0.77530898,104020.0,104010.0,0.00148593]
[1762264384632,0.76016898,104020.0,104010.0,0.20693513]
[1762264385727,0.22113958,104030.0,104020.0,0.24206048]
[1762264385944,0.78903785,104030.0,104020.0,0.24206048]
[1762264386149,0.80417785,104030.0,104020.0,0.24206048]
[1762264386562,0.7820437,104040.0,104020.0,0.26838048]
[1762264386785,0.21414543,104040.0,104030.0,0.04978977]
[1762264387066,0.19227071,104020.0,104010.0,0.0502757]
[1762264387272,0.76016898,104020.0,104010.0,0.0502757]
[1762264387470,0.76016898,104020.0,104010.0,0.06463939]
[1762264387678,0.76016898,104020.0,104010.0,0.25692859]
[1762264388339,0.77530898,104020.0,104010.0,0.05147939]
[1762264388587,0.77530898,104020.0,104010.0,0.00268962]
[1762264388795,0.76016898,104020.0,104010.0,0.20813882]
[1762264389004,0.56789827,104020.0,104010.0,0.25792859]
[1762264389178,0.56789827,104020.0,104010.0,0.27108859]
[1762264389626,0.76015587,104030.0,104010.0,0.27108859]
[1762264389814,0.19227071,104020.0,104010.0,0.2708849]
[1762264390515,0.19227071,104020.0,104010.0,0.2698849]
[1762264390706,0.19227071,104020.0,104010.0,0.2688849]
[1762264390948,0.56789827,104020.0,104010.0,0.2688849]
[1762264391538,0.79002633,104030.0,104020.0,0.19227071]
[1762264391769,0.79002633,104030.0,104020.0,0.01316]
[1762264391974,0.79002633,104030.0,104020.0,0.20543071]
[1762264392203,0.79002633,104030.0,104020.0,0.01316]
[1762264392641,0.7890204,104030.0,104020.0,0.20543071]
[1762264392852,0.7890204,104030.0,104020.0,0.06294977]
[1762264393063,0.7890204,104030.0,104020.0,0.25522048]
[1762264393276,0.21414543,104040.0,104020.0,0.26838048]
[1762264393508,0.7820437,104040.0,104030.0,0.02143]
[1762264393740,0.79861149,104040.0,104030.0,0.02143]
[1762264394371,0.83840149,104040.0,104030.0,0.00827]
[1762264394571,0.19225223,104030.0,104010.0,0.24865285]
[1762264394832,0.76016898,104020.0,104010.0,0.28528262]
[1762264395085,0.76016898,104020.0,104010.0,0.29844262]
[1762264395289,0.76016898,104020.0,104010.0,0.31160262]
[1762264395497,0.76016898,104020.0,104010.0,0.31280631]
[1762264396087,0.76016898,104020.0,104010.0,0.29964631]
[1762264396707,0.56789827,104020.0,104010.0,0.31280631]
[1762264396935,0.56789827,104020.0,104010.0,0.31380631]
[1762264397431,0.7601505,104030.0,104010.0,0.26401654]
[1762264397645,0.7601505,104030.0,104020.0,0.26838048]
[1762264398049,0.7601505,104030.0,104020.0,0.25522048]
[1762264398212,0.7601505,104030.0,104020.0,0.06294977]
[1762264398584,0.7621505,104030.0,104020.0,0.07610977]
[1762264398763,0.7621505,104030.0,104020.0,0.25522048]
[1762264398979,0.7621505,104030.0,104020.0,0.26838048]
[1762264399135,0.7601505,104030.0,104020.0,0.26838048]
[1762264399341,0.7621505,104030.0,104020.0,0.26838048]
[1762264399744,0.7631505,104030.0,104020.0,0.26838048]
[1762264399944,0.7621505,104030.0,104020.0,0.26838048]
[1762264400392,0.7631505,104030.0,104020.0,0.07610977]
[1762264400753,0.7631505,104030.0,104020.0,0.26838048]
[1762264401866,0.7611505,104030.0,104020.0,0.26838048]
[1762264402315,0.7611505,104030.0,104020.0,0.26938048]
[1762264402829,0.7601505,104030.0,104020.0,0.25718334]
[1762264403032,0.7601505,104030.0,104020.0,0.25818334]
[1762264403240,0.7601505,104030.0,104020.0,0.27134334]
[1762264403890,0.56789827,104030.0,104020.0,0.27134334]
[1762264404099,0.7601505,104030.0,104020.0,0.27134334]
[1762264404282,0.7601505,104030.0,104020.0,0.27961334]
[1762264404502,0.59189162,104030.0,104020.0,0.27961334]
[1762264405354,0.60321162,104030.0,104020.0,0.07418263]
[1762264405998,0.63035261,104040.0,104030.0,0.19225223]
[1762264406225,1.04797733,104040.0,104030.0,0.19225223]
[1762264406455,0.44649251,104040.0,104030.0,0.2620143]
[1762264406674,0.39963939,104040.0,104030.0,0.31180407]
[1762264407105,0.39963939,104050.0,104040.0,0.24202352]
[1762264407318,0.4176397,104050.0,104040.0,0.25518352]
[1762264407550,0.43837495,104050.0,104040.0,0.25518352]
[1762264407779,0.4176397,104050.0,104040.0,0.25518352]
[1762264408005,0.60147841,104060.0,104050.0,0.24200505]
[1762264408216,0.64021171,104060.0,104050.0,0.26832505]
[1762264408420,0.24057232,104060.0,104050.0,0.26832505]
[1762264408627,0.0387333,104060.0,104050.0,0.26832505]
[1762264408871,0.2309301,104060.0,104050.0,0.26832505]
[1762264409090,0.0387333,104060.0,104050.0,0.31100505]
[1762264409306,0.2309301,104060.0,104050.0,0.31115077]
[1762264409944,0.2329301,104060.0,104050.0,0.31115077]
[1762264410426,0.2309301,104060.0,104050.0,0.31115077]
[1762264410843,0.2309301,104060.0,104050.0,0.10677549]
[1762264411045,0.2309301,104060.0,104050.0,0.29999077]
[1762264411249,0.2309301,104060.0,104050.0,0.31315077]
[1762264411671,0.0387333,104060.0,104050.0,0.31315077]
[1762264412287,0.01799868,104060.0,104050.0,0.31315077]
[1762264412494,1.01712272,104070.0,104060.0,0.1921968]
[1762264412695,0.29634025,104070.0,104060.0,0.2053568]
[1762264412940,0.28502025,104070.0,104060.0,0.26830657]
[1762264413622,0.04072025,104070.0,104060.0,0.26830657]
[1762264413831,0.04172025,104070.0,104060.0,0.26830657]
[1762264414081,0.003,104070.0,104060.0,0.26830657]
[1762264414494,0.001,104070.0,104060.0,0.26830657]
[1762264414907,0.001,104070.0,104060.0,0.36678564]
[1762264415335,0.21287282,104080.0,104070.0,0.19217834]
[1762264415550,0.23084541,104080.0,104070.0,0.30269811]
[1762264416006,0.2308453,104080.0,104070.0,0.31585811]
[1762264416437,0.79816968,104080.0,104070.0,0.31585811]
[1762264416760,0.79816968,104080.0,104070.0,0.31685811]
[1762264416853,0.79816968,104080.0,104070.0,0.31785811]
[1762264417281,0.77745684,104080.0,104070.0,0.31785811]
[1762264417493,0.58529697,104080.0,104070.0,0.31785811]
[1762264417741,0.21013246,104080.0,104070.0,0.06273]
[1762264418028,0.21013246,104080.0,104070.0,0.30469811]
[1762264418239,0.19215987,104080.0,104070.0,0.30469811]
[1762264418448,0.19215987,104080.0,104070.0,0.11251977]
[1762264418852,0.19215987,104080.0,104070.0,0.06983977]
[1762264419079,0.81234425,104080.0,104070.0,0.05667977]
[1762264419305,0.83030332,104080.0,104070.0,0.05178977]
[1762264419514,0.81234425,104080.0,104070.0,0.05178977]
[1762264420350,0.81234425,104080.0,104070.0,0.24396811]
[1762264420552,0.75948425,104080.0,104070.0,0.20733834]
[1762264420783,0.79800768,104090.0,104070.0,0.22049834]
[1762264420969,0.83664407,104090.0,104080.0,0.26337964]
[1762264421107,0.63481526,104090.0,104080.0,0.26337964]
[1762264421307,0.06443682,104100.0,104090.0,0.24193118]
[1762264421512,0.10306322,104100.0,104090.0,0.26825118]
[1762264421716,0.06443682,104100.0,104090.0,0.26825118]
[1762264421931,0.08238421,104100.0,104090.0,0.26825118]
[1762264422130,0.84183154,104100.0,104090.0,0.26825118]
[1762264422556,0.27450716,104100.0,104090.0,0.26825118]
[1762264423218,0.90339216,104100.0,104090.0,0.001]
[1762264425186,0.19214141,104090.0,104080.0,0.05805977]
[1762264425386,0.19217828,104080.0,104060.0,0.31533262]
[1762264425604,0.78780272,104070.0,104060.0,0.05467977]
[1762264425808,0.78780272,104070.0,104060.0,0.09735977]
[1762264426414,0.78780272,104070.0,104060.0,0.05467977]
[1762264428750,0.19217828,104080.0,104060.0,0.27319657]
[1762264429061,0.56732438,104070.0,104060.0,0.27319657]
[1762264429224,0.75950266,104080.0,104070.0,0.06294977]
[1762264429489,0.75950266,104080.0,104070.0,0.25512811]
[1762264429692,0.75950266,104080.0,104070.0,0.06294977]
[1762264429908,0.77577266,104080.0,104070.0,0.04978977]
[1762264430109,0.19217834,104070.0,104060.0,0.00489]
[1762264430325,0.75950272,104070.0,104060.0,0.26003657]
[1762264430521,0.75950272,104070.0,104060.0,0.27319657]
[1762264430667,0.75950272,104070.0,104060.0,0.06783977]
[1762264430869,0.75950272,104070.0,104060.0,0.26003657]
[1762264432140,0.75950272,104070.0,104060.0,0.27319657]
[1762264432472,0.79848272,104070.0,104060.0,0.05667977]
[1762264432715,0.77577272,104070.0,104060.0,0.29355657]
[1762264432914,0.56732438,104070.0,104060.0,0.31987657]
[1762264433141,0.75950266,104080.0,104070.0,0.24196811]
[1762264433391,0.75950266,104080.0,104070.0,0.06294977]
[1762264434178,0.75950266,104080.0,104070.0,0.07610977]
[1762264434383,0.75950266,104080.0,104070.0,0.06294977]
[1762264434956,0.19217834,104070.0,104060.0,0.30271657]
[1762264435298,0.56732438,104070.0,104060.0,0.30271657]
[1762264435498,0.56732438,104070.0,104060.0,0.31587657]
[1762264435922,0.76250266,104080.0,104070.0,0.04978977]
[1762264436129,0.76250266,104080.0,104070.0,0.06294977]
[1762264436326,0.79848266,104080.0,104070.0,0.04978977]
[1762264436474,0.19217834,104070.0,104060.0,0.28955654]
[1762264436680,0.75950272,104070.0,104060.0,0.28955654]
[1762264436884,0.75950272,104070.0,104060.0,0.31587654]
[1762264438154,0.75950272,104070.0,104060.0,0.30271654]
[1762264439429,0.56732438,104070.0,104060.0,0.31587654]
[1762264439648,0.75950272,104070.0,104060.0,0.31587654]
[1762264440087,0.75950272,104070.0,104060.0,0.11051977]
[1762264440484,0.75950272,104070.0,104060.0,0.30271657]
[1762264440889,0.75950272,104070.0,104060.0,0.11051977]
[1762264441880,0.75950272,104070.0,104060.0,0.30271657]
[1762264442304,0.5915318,104070.0,104060.0,0.30271657]
[1762264443132,0.39935346,104070.0,104060.0,0.30271657]
[1762264443341,0.39935346,104070.0,104060.0,0.31587657]
[1762264444138,0.5915318,104070.0,104060.0,0.31587657]
[1762264444337,0.5915318,104070.0,104060.0,0.30271657]
[1762264444578,1.04189526,104070.0,104060.0,0.05467977]
[1762264444801,1.01918526,104070.0,104060.0,0.24687657]
[1762264445018,0.6035618,104070.0,104060.0,0.26003657]
[1762264446262,0.39935346,104070.0,104060.0,0.27319657]
[1762264446469,0.5915318,104070.0,104060.0,0.27319657]
[1762264446682,0.5915318,104070.0,104060.0,0.06783977]
[1762264447117,0.5915318,104070.0,104060.0,0.27319657]
[1762264448822,0.5915318,104070.0,104060.0,0.26003657]
[1762264449256,0.5915318,104070.0,104060.0,0.27319657]
[1762264449435,0.39935346,104070.0,104060.0,0.27319657]
[1762264450434,0.06359579,104080.0,104070.0,0.19217834]
[1762264450641,0.64565346,104090.0,104080.0,0.19215987]
[1762264450840,0.06828689,104100.0,104090.0,0.24193118]
[1762264451038,0.26040984,104100.0,104090.0,0.26110141]
[1762264451265,0.26040984,104100.0,104090.0,0.31089118]
[1762264451457,0.26040984,104100.0,104090.0,0.29773118]
[1762264451696,0.63091323,104100.0,104090.0,0.10558977]
[1762264452909,0.63091323,104100.0,104090.0,0.29773118]